[Event "Titled Tuesday Blitz March 21 Early 2023"]
[White "Gontcharov, Vladislav"]
[Black "Vakhlamov, Igor L."]
[WhiteFideId "4123492"]
[BlackFideId "24126748"]
[WhiteElo "2470"]
[BlackElo "2400"]
[Result "1-0"]
[Round "05"]
[TimeControl "180+2"]
[Date "2023.03.21"]
[WhiteClock "0:00:04"]
[BlackClock "0:00:05"]

1. d4 {[%clk 0:03:00]}  d5 {[%clk 0:02:58]} 2. c4 {[%clk 0:03:00]}  e6 {[%clk 0:02:58]} 3. Nc3 {[%clk 0:03:00]}  c5 {[%clk 0:02:58]} 4. cxd5 {[%clk 0:02:58]}  cxd4 {[%clk 0:02:58]} 5. Qa4+ {[%clk 0:02:57]}  Bd7 {[%clk 0:02:58]} 6. Qxd4 {[%clk 0:02:57]}  exd5 {[%clk 0:02:59]} 7. Nf3 {[%clk 0:02:53]}  Nf6 {[%clk 0:02:59]} 8. Bg5 {[%clk 0:02:51]}  Be7 {[%clk 0:03:00]} 9. e3 {[%clk 0:02:48]}  Nc6 {[%clk 0:02:58]} 10. Qd1 {[%clk 0:02:47]}  O-O {[%clk 0:02:57]} 11. Bd3 {[%clk 0:02:41]}  h6 {[%clk 0:02:54]} 12. Bh4 {[%clk 0:02:38]}  Be6 {[%clk 0:02:52]} 13. O-O {[%clk 0:02:33]}  Qb6 {[%clk 0:02:53]} 14. Na4 {[%clk 0:02:26]}  Qa5 {[%clk 0:02:49]} 15. Rc1 {[%clk 0:02:14]}  Rfd8 {[%clk 0:02:47]} 16. a3 {[%clk 0:02:08]}  d4 {[%clk 0:01:55]} 17. e4 {[%clk 0:01:32]}  Qh5 {[%clk 0:01:45]} 18. Bg3 {[%clk 0:01:28]}  Rac8 {[%clk 0:01:33]} 19. b4 {[%clk 0:01:18]}  Bg4 {[%clk 0:01:22]} 20. h3 {[%clk 0:01:11]}  Bxf3 {[%clk 0:01:22]} 21. Qxf3 {[%clk 0:01:10]}  Qxf3 {[%clk 0:01:22]} 22. gxf3 {[%clk 0:01:11]}  Nh5 {[%clk 0:01:23]} 23. f4 {[%clk 0:01:06]}  g5 {[%clk 0:01:14]} 24. fxg5 {[%clk 0:00:56]}  Bxg5 {[%clk 0:01:15]} 25. Rc5 {[%clk 0:00:55]}  b6 {[%clk 0:00:55]} 26. Rf5 {[%clk 0:00:42]}  Ne7 {[%clk 0:00:51]} 27. Rb5 {[%clk 0:00:30]}  Ng6 {[%clk 0:00:51]} 28. Rd1 {[%clk 0:00:19]}  Nhf4 {[%clk 0:00:47]} 29. Bf1 {[%clk 0:00:17]}  Rc2 {[%clk 0:00:42]} 30. Rf5 {[%clk 0:00:16]}  Ne2+ {[%clk 0:00:12]} 31. Bxe2 {[%clk 0:00:16]}  Rxe2 {[%clk 0:00:13]} 32. Rd5 {[%clk 0:00:13]}  Re8 {[%clk 0:00:07]} 33. R5xd4 {[%clk 0:00:13]}  R2xe4 {[%clk 0:00:07]} 34. Rxe4 {[%clk 0:00:13]}  Rxe4 {[%clk 0:00:08]} 35. Nc3 {[%clk 0:00:12]}  Rc4 {[%clk 0:00:07]} 36. Nd5 {[%clk 0:00:12]}  Rc2 {[%clk 0:00:08]} 37. Rd3 {[%clk 0:00:11]}  Kg7 {[%clk 0:00:06]} 38. Kg2 {[%clk 0:00:11]}  h5 {[%clk 0:00:06]} 39. Bb8 {[%clk 0:00:09]}  a5 {[%clk 0:00:03]} 40. Ba7 {[%clk 0:00:09]}  axb4 {[%clk 0:00:03]} 41. axb4 {[%clk 0:00:09]}  b5 {[%clk 0:00:03]} 42. Bd4+ {[%clk 0:00:08]}  Kh6 {[%clk 0:00:03]} 43. Kg3 {[%clk 0:00:06]}  Rc4 {[%clk 0:00:04]} 44. Bc5 {[%clk 0:00:04]}  Bh4+ {[%clk 0:00:03]} 45. Kg2 {[%clk 0:00:04]}  Bg5 {[%clk 0:00:04]} 46. Rf3 {[%clk 0:00:04]}  Nh4+ {[%clk 0:00:05]} 47. Kg3 {[%clk 0:00:04]}  Nxf3 {[%clk 0:00:05]} 48. Kxf3 {[%clk 0:00:04]}  Rc2 {[%clk 0:00:05]} 49. Nc7 {[%clk 0:00:04]}  Rc3+ {[%clk 0:00:06]} 50. Kg2 {[%clk 0:00:03]}  Be7 {[%clk 0:00:06]} 51. Nxb5 {[%clk 0:00:03]}  Rxc5 {[%clk 0:00:02]} 52. bxc5 {[%clk 0:00:03]}  Bxc5 {[%clk 0:00:03]} 53. f4 {[%clk 0:00:03]}  Be7 {[%clk 0:00:03]} 54. Kf3 {[%clk 0:00:04]}  Kg6 {[%clk 0:00:04]} 55. Nd4 {[%clk 0:00:04]}  Bf6 {[%clk 0:00:05]} 56. Ne2 {[%clk 0:00:04]} 1-0


[Site "https://www.chess.com"]

[Event "Titled Tuesday Blitz March 21 Early 2023"]
[White "Narayanan, Srinath"]
[Black "Aaditya Dhingra"]
[WhiteFideId "5018420"]
[BlackFideId "25678191"]
[WhiteElo "2438"]
[BlackElo "2083"]
[Result "1-0"]
[Round "05"]
[TimeControl "180+2"]
[Date "2023.03.21"]
[WhiteClock "0:00:11"]
[BlackClock "0:00:18"]

1. Nf3 {[%clk 0:03:00]}  Nf6 {[%clk 0:02:59]} 2. c4 {[%clk 0:03:01]}  c6 {[%clk 0:02:56]} 3. d4 {[%clk 0:03:00]}  d5 {[%clk 0:02:56]} 4. e3 {[%clk 0:03:01]}  e6 {[%clk 0:02:56]} 5. Nc3 {[%clk 0:03:01]}  Nbd7 {[%clk 0:02:56]} 6. Bd3 {[%clk 0:03:01]}  dxc4 {[%clk 0:02:57]} 7. Bxc4 {[%clk 0:03:02]}  b5 {[%clk 0:02:57]} 8. Bd3 {[%clk 0:03:03]}  Bb7 {[%clk 0:02:57]} 9. O-O {[%clk 0:03:03]}  a6 {[%clk 0:02:57]} 10. a3 {[%clk 0:03:03]}  c5 {[%clk 0:02:57]} 11. Re1 {[%clk 0:02:58]}  Be7 {[%clk 0:02:53]} 12. Bc2 {[%clk 0:02:41]}  O-O {[%clk 0:02:38]} 13. e4 {[%clk 0:02:40]}  cxd4 {[%clk 0:02:37]} 14. Nxd4 {[%clk 0:02:41]}  Ne5 {[%clk 0:02:29]} 15. Bf4 {[%clk 0:02:36]}  Ng6 {[%clk 0:02:19]} 16. Bg3 {[%clk 0:02:34]}  Qb6 {[%clk 0:02:15]} 17. Nb3 {[%clk 0:02:24]}  Rfd8 {[%clk 0:02:12]} 18. Qf3 {[%clk 0:02:22]}  Nd7 {[%clk 0:02:02]} 19. Qh5 {[%clk 0:02:14]}  Nf6 {[%clk 0:01:59]} 20. Qe2 {[%clk 0:02:14]}  Rac8 {[%clk 0:01:55]} 21. h4 {[%clk 0:02:11]}  h6 {[%clk 0:01:46]} 22. h5 {[%clk 0:02:07]}  Nf8 {[%clk 0:01:45]} 23. Red1 {[%clk 0:01:48]}  Rxd1+ {[%clk 0:01:42]} 24. Rxd1 {[%clk 0:01:49]}  Rd8 {[%clk 0:01:42]} 25. e5 {[%clk 0:01:44]}  Qc6 {[%clk 0:01:36]} 26. f3 {[%clk 0:01:20]}  Nxh5 {[%clk 0:01:33]} 27. Bf2 {[%clk 0:01:20]}  Nf4 {[%clk 0:01:31]} 28. Qe3 {[%clk 0:01:14]}  Rxd1+ {[%clk 0:01:20]} 29. Bxd1 {[%clk 0:01:15]}  N8g6 {[%clk 0:01:13]} 30. Na5 {[%clk 0:01:09]}  Qc7 {[%clk 0:01:11]} 31. Nxb7 {[%clk 0:01:08]}  Qxb7 {[%clk 0:01:11]} 32. Bc2 {[%clk 0:01:05]}  Qc7 {[%clk 0:01:07]} 33. Bxg6 {[%clk 0:00:56]}  Nxg6 {[%clk 0:01:05]} 34. f4 {[%clk 0:00:57]}  Qd7 {[%clk 0:00:58]} 35. g3 {[%clk 0:00:53]}  h5 {[%clk 0:00:57]} 36. Qf3 {[%clk 0:00:54]}  h4 {[%clk 0:00:55]} 37. g4 {[%clk 0:00:39]}  Qd2 {[%clk 0:00:54]} 38. f5 {[%clk 0:00:36]}  Nxe5 {[%clk 0:00:52]} 39. Qa8+ {[%clk 0:00:36]}  Qd8 {[%clk 0:00:50]} 40. Qxa6 {[%clk 0:00:32]}  Nxg4 {[%clk 0:00:46]} 41. fxe6 {[%clk 0:00:32]}  f5 {[%clk 0:00:39]} 42. Qxb5 {[%clk 0:00:30]}  g6 {[%clk 0:00:30]} 43. Bb6 {[%clk 0:00:27]}  Qb8 {[%clk 0:00:22]} 44. Nd5 {[%clk 0:00:12]}  Qh2+ {[%clk 0:00:21]} 45. Kf1 {[%clk 0:00:13]}  Qh1+ {[%clk 0:00:20]} 46. Ke2 {[%clk 0:00:13]}  Qg2+ {[%clk 0:00:18]} 47. Kd1 {[%clk 0:00:12]}  Qxd5+ {[%clk 0:00:18]} 48. Qxd5 {[%clk 0:00:11]}  Ne3+ {[%clk 0:00:18]} 49. Bxe3 {[%clk 0:00:11]} 1-0


[Site "https://www.chess.com"]

[Event "Titled Tuesday Blitz March 21 Early 2023"]
[White "Yelisieiev, Yevhenii"]
[Black "Albornoz Cabrera, Carlos Daniel"]
[WhiteFideId "14139642"]
[BlackFideId "3518736"]
[WhiteElo "2447"]
[BlackElo "2501"]
[Result "0-1"]
[Round "05"]
[TimeControl "180+2"]
[Date "2023.03.21"]
[WhiteClock "0:00:03"]
[BlackClock "0:00:48"]

1. d4 {[%clk 0:03:00]}  Nf6 {[%clk 0:02:59]} 2. Nf3 {[%clk 0:03:01]}  d5 {[%clk 0:02:56]} 3. c4 {[%clk 0:03:00]}  e6 {[%clk 0:02:56]} 4. Nc3 {[%clk 0:03:00]}  dxc4 {[%clk 0:02:57]} 5. e4 {[%clk 0:03:00]}  Bb4 {[%clk 0:02:54]} 6. Bg5 {[%clk 0:03:00]}  b5 {[%clk 0:02:48]} 7. e5 {[%clk 0:02:50]}  h6 {[%clk 0:02:48]} 8. Bh4 {[%clk 0:02:50]}  g5 {[%clk 0:02:47]} 9. Nxg5 {[%clk 0:02:51]}  hxg5 {[%clk 0:02:34]} 10. Bxg5 {[%clk 0:02:50]}  Nbd7 {[%clk 0:02:28]} 11. Qf3 {[%clk 0:02:13]}  Rb8 {[%clk 0:02:27]} 12. Bxf6 {[%clk 0:02:13]}  Nxf6 {[%clk 0:02:26]} 13. Qxf6 {[%clk 0:02:14]}  Qxf6 {[%clk 0:02:23]} 14. exf6 {[%clk 0:02:14]}  Rh4 {[%clk 0:02:08]} 15. O-O-O {[%clk 0:02:09]}  Rf4 {[%clk 0:02:08]} 16. f3 {[%clk 0:02:02]}  Rxf6 {[%clk 0:02:08]} 17. Ne4 {[%clk 0:02:02]}  Rh6 {[%clk 0:02:06]} 18. g4 {[%clk 0:01:55]}  Bd6 {[%clk 0:01:58]} 19. h4 {[%clk 0:01:54]}  Bf4+ {[%clk 0:01:57]} 20. Kc2 {[%clk 0:01:52]}  Bb7 {[%clk 0:01:55]} 21. Be2 {[%clk 0:01:41]}  Ke7 {[%clk 0:01:49]} 22. g5 {[%clk 0:01:35]}  Rhh8 {[%clk 0:01:43]} 23. Kc3 {[%clk 0:01:19]}  Bd5 {[%clk 0:01:29]} 24. a3 {[%clk 0:01:18]}  a5 {[%clk 0:01:29]} 25. Nf6 {[%clk 0:01:06]}  c6 {[%clk 0:01:24]} 26. Rdg1 {[%clk 0:00:50]}  Be3 {[%clk 0:01:20]} 27. Rg4 {[%clk 0:00:49]}  b4+ {[%clk 0:01:14]} 28. axb4 {[%clk 0:00:48]}  axb4+ {[%clk 0:01:15]} 29. Kc2 {[%clk 0:00:48]}  Ra8 {[%clk 0:01:15]} 30. Nxd5+ {[%clk 0:00:41]}  cxd5 {[%clk 0:01:14]} 31. h5 {[%clk 0:00:41]}  Rag8 {[%clk 0:00:58]} 32. f4 {[%clk 0:00:32]}  Bxd4 {[%clk 0:00:57]} 33. f5 {[%clk 0:00:32]}  b3+ {[%clk 0:00:56]} 34. Kb1 {[%clk 0:00:31]}  Be5 {[%clk 0:00:53]} 35. f6+ {[%clk 0:00:18]}  Kd6 {[%clk 0:00:52]} 36. h6 {[%clk 0:00:14]}  Ra8 {[%clk 0:00:50]} 37. Bd1 {[%clk 0:00:05]}  Ra2 {[%clk 0:00:48]} 38. Rg2 {[%clk 0:00:05]}  Rha8 {[%clk 0:00:47]} 39. Kc1 {[%clk 0:00:06]}  Bf4+ {[%clk 0:00:47]} 40. Rd2 {[%clk 0:00:03]}  Ra1# {[%clk 0:00:48]} 0-1


[Site "https://www.chess.com"]

[Event "Titled Tuesday Blitz March 21 Early 2023"]
[White "Cherniaiev, Tykhon"]
[Black "Yosha_Iglesias"]
[WhiteFideId "14182360"]
[WhiteElo "2450"]
[BlackElo "2472"]
[Result "1-0"]
[Round "05"]
[TimeControl "180+2"]
[Date "2023.03.21"]
[WhiteClock "0:01:34"]
[BlackClock "0:00:03"]

1. Nf3 {[%clk 0:03:00]}  d5 {[%clk 0:02:38]} 2. d4 {[%clk 0:03:00]}  Nf6 {[%clk 0:02:37]} 3. c4 {[%clk 0:03:00]}  e6 {[%clk 0:02:36]} 4. Nc3 {[%clk 0:02:58]}  h6 {[%clk 0:02:35]} 5. cxd5 {[%clk 0:02:52]}  exd5 {[%clk 0:02:36]} 6. Bf4 {[%clk 0:02:52]}  Bd6 {[%clk 0:02:32]} 7. Bxd6 {[%clk 0:02:52]}  Qxd6 {[%clk 0:02:33]} 8. e3 {[%clk 0:02:52]}  c6 {[%clk 0:02:28]} 9. a3 {[%clk 0:02:52]}  O-O {[%clk 0:02:22]} 10. Be2 {[%clk 0:02:51]}  Bg4 {[%clk 0:02:10]} 11. O-O {[%clk 0:02:51]}  Nbd7 {[%clk 0:02:10]} 12. b4 {[%clk 0:02:50]}  Qe7 {[%clk 0:01:59]} 13. h3 {[%clk 0:02:47]}  Bxf3 {[%clk 0:01:59]} 14. Bxf3 {[%clk 0:02:48]}  a6 {[%clk 0:01:59]} 15. Rb1 {[%clk 0:02:46]}  Ne8 {[%clk 0:01:25]} 16. a4 {[%clk 0:02:42]}  b5 {[%clk 0:01:24]} 17. axb5 {[%clk 0:02:42]}  axb5 {[%clk 0:01:25]} 18. e4 {[%clk 0:02:42]}  dxe4 {[%clk 0:01:21]} 19. Bxe4 {[%clk 0:02:38]}  Ra6 {[%clk 0:01:14]} 20. Qf3 {[%clk 0:02:32]}  Qd6 {[%clk 0:01:04]} 21. d5 {[%clk 0:02:10]}  cxd5 {[%clk 0:00:55]} 22. Bxd5 {[%clk 0:02:01]}  Nef6 {[%clk 0:00:51]} 23. Rfd1 {[%clk 0:01:59]}  Qb6 {[%clk 0:00:23]} 24. Bb3 {[%clk 0:01:46]}  Ne5 {[%clk 0:00:22]} 25. Qf5 {[%clk 0:01:44]}  Re8 {[%clk 0:00:13]} 26. Re1 {[%clk 0:01:39]}  Qc7 {[%clk 0:00:09]} 27. Nxb5 {[%clk 0:01:36]}  Qb8 {[%clk 0:00:05]} 28. Nd4 {[%clk 0:01:35]}  Rb6 {[%clk 0:00:03]} 29. b5 {[%clk 0:01:34]} 1-0


[Site "https://www.chess.com"]

[Event "Titled Tuesday Blitz March 21 Early 2023"]
[White "Karas, Marek"]
[Black "Ashraf, Artin"]
[WhiteFideId "14928558"]
[BlackFideId "22514805"]
[WhiteElo "2233"]
[BlackElo "2188"]
[Result "0-1"]
[Round "05"]
[TimeControl "180+2"]
[Date "2023.03.21"]
[WhiteClock "0:00:02"]
[BlackClock "0:00:04"]

1. d4 {[%clk 0:03:00]}  d5 {[%clk 0:02:58]} 2. Nf3 {[%clk 0:03:01]}  Bf5 {[%clk 0:02:58]} 3. Bf4 {[%clk 0:02:59]}  e6 {[%clk 0:02:56]} 4. e3 {[%clk 0:03:00]}  c5 {[%clk 0:02:56]} 5. dxc5 {[%clk 0:02:48]}  Bxc5 {[%clk 0:02:55]} 6. c4 {[%clk 0:02:48]}  Nf6 {[%clk 0:02:53]} 7. Nc3 {[%clk 0:02:47]}  O-O {[%clk 0:02:48]} 8. cxd5 {[%clk 0:02:46]}  exd5 {[%clk 0:02:48]} 9. Be2 {[%clk 0:02:45]}  Nc6 {[%clk 0:02:47]} 10. O-O {[%clk 0:02:45]}  d4 {[%clk 0:02:41]} 11. exd4 {[%clk 0:02:44]}  Nxd4 {[%clk 0:02:42]} 12. Nxd4 {[%clk 0:02:45]}  Bxd4 {[%clk 0:02:41]} 13. Qb3 {[%clk 0:02:44]}  Be6 {[%clk 0:02:34]} 14. Qa4 {[%clk 0:02:35]}  Qb6 {[%clk 0:02:11]} 15. Qb5 {[%clk 0:02:11]}  Qxb5 {[%clk 0:01:49]} 16. Bxb5 {[%clk 0:02:08]}  Bxc3 {[%clk 0:01:47]} 17. bxc3 {[%clk 0:02:07]}  Rfc8 {[%clk 0:01:46]} 18. Be5 {[%clk 0:02:03]}  Rc5 {[%clk 0:01:42]} 19. Bxf6 {[%clk 0:01:58]}  gxf6 {[%clk 0:01:43]} 20. a4 {[%clk 0:01:40]}  Rxc3 {[%clk 0:01:41]} 21. h3 {[%clk 0:01:39]}  Rac8 {[%clk 0:01:18]} 22. Rfb1 {[%clk 0:01:26]}  R8c7 {[%clk 0:01:15]} 23. a5 {[%clk 0:01:25]}  f5 {[%clk 0:01:06]} 24. Be2 {[%clk 0:01:21]}  Bd5 {[%clk 0:01:06]} 25. Bf1 {[%clk 0:01:09]}  Kg7 {[%clk 0:01:02]} 26. Rb5 {[%clk 0:01:03]}  Be6 {[%clk 0:00:56]} 27. Kh2 {[%clk 0:00:55]}  Rc2 {[%clk 0:00:48]} 28. f3 {[%clk 0:00:48]}  Kf6 {[%clk 0:00:48]} 29. Rab1 {[%clk 0:00:34]}  Bc8 {[%clk 0:00:46]} 30. R5b2 {[%clk 0:00:26]}  Rxb2 {[%clk 0:00:36]} 31. Rxb2 {[%clk 0:00:27]}  Rc5 {[%clk 0:00:37]} 32. Ra2 {[%clk 0:00:25]}  Be6 {[%clk 0:00:35]} 33. Ra4 {[%clk 0:00:20]}  Bd5 {[%clk 0:00:33]} 34. Kg3 {[%clk 0:00:19]}  Rc1 {[%clk 0:00:31]} 35. Bd3 {[%clk 0:00:18]}  Rd1 {[%clk 0:00:30]} 36. Be2 {[%clk 0:00:14]}  Rd2 {[%clk 0:00:29]} 37. Bf1 {[%clk 0:00:14]}  Bc6 {[%clk 0:00:29]} 38. Ra3 {[%clk 0:00:12]}  a6 {[%clk 0:00:28]} 39. Bc4 {[%clk 0:00:10]}  h6 {[%clk 0:00:20]} 40. Rc3 {[%clk 0:00:07]}  Rb2 {[%clk 0:00:17]} 41. Bxa6 {[%clk 0:00:06]}  Ra2 {[%clk 0:00:13]} 42. Bf1 {[%clk 0:00:02]}  Rxa5 {[%clk 0:00:12]} 43. Rb3 {[%clk 0:00:02]}  Kg5 {[%clk 0:00:11]} 44. h4+ {[%clk 0:00:02]}  Kf6 {[%clk 0:00:11]} 45. Rb4 {[%clk 0:00:03]}  Ra1 {[%clk 0:00:11]} 46. Be2 {[%clk 0:00:02]}  Rc1 {[%clk 0:00:11]} 47. Bd3 {[%clk 0:00:02]}  Ke5 {[%clk 0:00:11]} 48. Be2 {[%clk 0:00:02]}  Bd5 {[%clk 0:00:09]} 49. Kf2 {[%clk 0:00:02]}  Rc2 {[%clk 0:00:08]} 50. Ke3 {[%clk 0:00:02]}  f4+ {[%clk 0:00:08]} 51. Kd3 {[%clk 0:00:01]}  Ra2 {[%clk 0:00:08]} 52. Bf1 {[%clk 0:00:02]}  Ra1 {[%clk 0:00:07]} 53. Be2 {[%clk 0:00:02]}  Rg1 {[%clk 0:00:07]} 54. Rb5 {[%clk 0:00:01]}  Rxg2 {[%clk 0:00:07]} 55. Kd2 {[%clk 0:00:01]}  Kd6 {[%clk 0:00:07]} 56. Kd3 {[%clk 0:00:01]}  Rh2 {[%clk 0:00:08]} 57. Rb4 {[%clk 0:00:02]}  Rxh4 {[%clk 0:00:08]} 58. Rb6+ {[%clk 0:00:02]}  Ke5 {[%clk 0:00:07]} 59. Rb5 {[%clk 0:00:01]}  Rh1 {[%clk 0:00:06]} 60. Rb6 {[%clk 0:00:01]}  h5 {[%clk 0:00:04]} 61. Kd2 {[%clk 0:00:02]}  h4 {[%clk 0:00:03]} 62. Rh6 {[%clk 0:00:02]}  h3 {[%clk 0:00:03]} 63. Rh5+ {[%clk 0:00:02]}  Kd6 {[%clk 0:00:03]} 64. Rh4 {[%clk 0:00:03]}  Be6 {[%clk 0:00:03]} 65. Rxf4 {[%clk 0:00:01]}  Ra1 {[%clk 0:00:04]} 66. Rh4 {[%clk 0:00:02]}  Ra2+ {[%clk 0:00:05]} 67. Ke3 {[%clk 0:00:02]}  Ke5 {[%clk 0:00:05]} 68. f4+ {[%clk 0:00:02]}  Kf6 {[%clk 0:00:05]} 69. Bd3 {[%clk 0:00:02]}  Ra3 {[%clk 0:00:05]} 70. Kd4 {[%clk 0:00:02]}  Bf5 {[%clk 0:00:05]} 71. Rh6+ {[%clk 0:00:02]}  Kg7 {[%clk 0:00:04]} 72. Rxh3 {[%clk 0:00:01]}  Bxh3 {[%clk 0:00:04]} 73. Bc4 {[%clk 0:00:02]}  Be6 {[%clk 0:00:04]} 0-1


[Site "https://www.chess.com"]

[Event "Titled Tuesday Blitz March 21 Early 2023"]
[White "Pakleza, Zbigniew"]
[Black "Lehtosaari, Mauri"]
[WhiteFideId "1119290"]
[BlackFideId "501999"]
[WhiteElo "2410"]
[BlackElo "2521"]
[Result "1-0"]
[Round "05"]
[TimeControl "180+2"]
[Date "2023.03.21"]
[WhiteClock "0:00:12"]
[BlackClock "0:00:02"]

1. d4 {[%clk 0:02:59]}  d5 {[%clk 0:02:57]} 2. Bf4 {[%clk 0:02:58]}  c5 {[%clk 0:02:52]} 3. e3 {[%clk 0:02:57]}  Nc6 {[%clk 0:02:51]} 4. c3 {[%clk 0:02:55]}  Nf6 {[%clk 0:02:47]} 5. Nd2 {[%clk 0:02:54]}  Qb6 {[%clk 0:02:42]} 6. Qb3 {[%clk 0:02:54]}  c4 {[%clk 0:02:41]} 7. Qxb6 {[%clk 0:02:52]}  axb6 {[%clk 0:02:42]} 8. a3 {[%clk 0:02:52]}  b5 {[%clk 0:02:40]} 9. Rc1 {[%clk 0:02:53]}  Bf5 {[%clk 0:02:40]} 10. h3 {[%clk 0:02:52]}  e6 {[%clk 0:02:39]} 11. g4 {[%clk 0:02:50]}  Bg6 {[%clk 0:02:39]} 12. Bg2 {[%clk 0:02:50]}  h6 {[%clk 0:02:38]} 13. Ne2 {[%clk 0:02:48]}  Be7 {[%clk 0:02:36]} 14. O-O {[%clk 0:02:48]}  O-O {[%clk 0:02:36]} 15. Rfe1 {[%clk 0:02:44]}  Nd7 {[%clk 0:02:28]} 16. Bh2 {[%clk 0:02:36]}  Nb6 {[%clk 0:02:28]} 17. e4 {[%clk 0:02:32]}  dxe4 {[%clk 0:02:15]} 18. Bxe4 {[%clk 0:02:26]}  Bxe4 {[%clk 0:02:07]} 19. Nxe4 {[%clk 0:02:27]}  Nd5 {[%clk 0:01:39]} 20. Bd6 {[%clk 0:02:20]}  Rad8 {[%clk 0:01:20]} 21. Bxe7 {[%clk 0:02:17]}  Ncxe7 {[%clk 0:01:21]} 22. Kg2 {[%clk 0:02:11]}  Ng6 {[%clk 0:01:20]} 23. Kg3 {[%clk 0:02:11]}  b6 {[%clk 0:01:15]} 24. Nd2 {[%clk 0:01:57]}  f5 {[%clk 0:01:07]} 25. a4 {[%clk 0:01:27]}  fxg4 {[%clk 0:01:00]} 26. axb5 {[%clk 0:01:24]}  gxh3 {[%clk 0:00:58]} 27. Nxc4 {[%clk 0:01:24]}  Rf5 {[%clk 0:00:41]} 28. Ne3 {[%clk 0:01:13]}  Rg5+ {[%clk 0:00:40]} 29. Kh2 {[%clk 0:01:04]}  Rf8 {[%clk 0:00:39]} 30. Rf1 {[%clk 0:01:00]}  Rf3 {[%clk 0:00:28]} 31. Ng1 {[%clk 0:00:46]}  Rf8 {[%clk 0:00:20]} 32. Nxh3 {[%clk 0:00:41]}  Rh5 {[%clk 0:00:21]} 33. Nxd5 {[%clk 0:00:42]}  exd5 {[%clk 0:00:20]} 34. Kg3 {[%clk 0:00:39]}  Rh4 {[%clk 0:00:14]} 35. Rce1 {[%clk 0:00:28]}  h5 {[%clk 0:00:11]} 36. f3 {[%clk 0:00:21]}  Rf5 {[%clk 0:00:05]} 37. Re2 {[%clk 0:00:17]}  Kh7 {[%clk 0:00:05]} 38. Rfe1 {[%clk 0:00:16]}  Rf6 {[%clk 0:00:04]} 39. Re8 {[%clk 0:00:15]}  Rxh3+ {[%clk 0:00:03]} 40. Kxh3 {[%clk 0:00:15]}  Rxf3+ {[%clk 0:00:04]} 41. Kg2 {[%clk 0:00:15]}  Nh4+ {[%clk 0:00:03]} 42. Kg1 {[%clk 0:00:16]}  Rg3+ {[%clk 0:00:03]} 43. Kh1 {[%clk 0:00:16]}  Rf3 {[%clk 0:00:03]} 44. R8e5 {[%clk 0:00:14]}  Rh3+ {[%clk 0:00:02]} 45. Kg1 {[%clk 0:00:13]}  Rg3+ {[%clk 0:00:02]} 46. Kf2 {[%clk 0:00:13]}  Rg2+ {[%clk 0:00:03]} 47. Kf1 {[%clk 0:00:13]}  g6 {[%clk 0:00:01]} 48. R1e2 {[%clk 0:00:13]}  Rg3 {[%clk 0:00:02]} 49. Rxd5 {[%clk 0:00:13]}  Nf5 {[%clk 0:00:02]} 50. Rd7+ {[%clk 0:00:12]}  Kh6 {[%clk 0:00:02]} 51. d5 {[%clk 0:00:12]}  Rh3 {[%clk 0:00:02]} 52. Ke1 {[%clk 0:00:12]}  Rh1+ {[%clk 0:00:02]} 53. Kd2 {[%clk 0:00:13]}  Rh3 {[%clk 0:00:02]} 54. d6 {[%clk 0:00:12]}  Rf3 {[%clk 0:00:01]} 55. Rh7+ {[%clk 0:00:12]}  Kxh7 {[%clk 0:00:01]} 56. d7 {[%clk 0:00:13]}  Nd6 {[%clk 0:00:01]} 57. d8=Q {[%clk 0:00:12]}  Nc4+ {[%clk 0:00:02]} 58. Kc2 {[%clk 0:00:12]} 1-0


[Site "https://www.chess.com"]

[Event "Titled Tuesday Blitz March 21 Early 2023"]
[White "Krysa, Leandro"]
[Black "Horak, Martin"]
[WhiteFideId "116807"]
[BlackFideId "367095"]
[WhiteElo "2485"]
[BlackElo "2091"]
[Result "1-0"]
[Round "05"]
[TimeControl "180+2"]
[Date "2023.03.21"]
[WhiteClock "0:00:51"]
[BlackClock "0:00:12"]

1. e4 {[%clk 0:03:00]}  c5 {[%clk 0:02:59]} 2. Nf3 {[%clk 0:03:00]}  Nc6 {[%clk 0:02:57]} 3. d4 {[%clk 0:03:00]}  cxd4 {[%clk 0:02:58]} 4. Nxd4 {[%clk 0:03:01]}  Nf6 {[%clk 0:02:58]} 5. Nc3 {[%clk 0:03:00]}  e5 {[%clk 0:02:59]} 6. Ndb5 {[%clk 0:03:00]}  d6 {[%clk 0:02:57]} 7. Nd5 {[%clk 0:03:00]}  Nxd5 {[%clk 0:02:56]} 8. exd5 {[%clk 0:03:01]}  Nb8 {[%clk 0:02:56]} 9. g4 {[%clk 0:02:56]}  Be7 {[%clk 0:02:36]} 10. Be3 {[%clk 0:02:52]}  a6 {[%clk 0:02:24]} 11. Nc3 {[%clk 0:02:51]}  O-O {[%clk 0:02:17]} 12. h4 {[%clk 0:02:36]}  f5 {[%clk 0:02:10]} 13. gxf5 {[%clk 0:02:33]}  Bxf5 {[%clk 0:02:11]} 14. Bd3 {[%clk 0:02:29]}  Nd7 {[%clk 0:01:59]} 15. Bxf5 {[%clk 0:02:24]}  Rxf5 {[%clk 0:02:00]} 16. Qg4 {[%clk 0:02:24]}  Rf7 {[%clk 0:01:53]} 17. O-O-O {[%clk 0:02:12]}  Nf6 {[%clk 0:01:52]} 18. Qg2 {[%clk 0:02:06]}  b5 {[%clk 0:01:46]} 19. Kb1 {[%clk 0:02:04]}  b4 {[%clk 0:01:46]} 20. Ne4 {[%clk 0:02:03]}  Nxe4 {[%clk 0:01:43]} 21. Qxe4 {[%clk 0:02:03]}  Qd7 {[%clk 0:01:40]} 22. Rhg1 {[%clk 0:01:56]}  a5 {[%clk 0:01:34]} 23. h5 {[%clk 0:01:49]}  Qf5 {[%clk 0:01:32]} 24. Qxf5 {[%clk 0:01:45]}  Rxf5 {[%clk 0:01:32]} 25. h6 {[%clk 0:01:45]}  g6 {[%clk 0:01:28]} 26. Rg4 {[%clk 0:01:44]}  Rc8 {[%clk 0:01:26]} 27. Rd3 {[%clk 0:01:38]}  Rff8 {[%clk 0:01:15]} 28. a3 {[%clk 0:01:35]}  bxa3 {[%clk 0:00:59]} 29. Rxa3 {[%clk 0:01:35]}  Bd8 {[%clk 0:00:56]} 30. Rb3 {[%clk 0:01:21]}  Rf7 {[%clk 0:00:53]} 31. c3 {[%clk 0:01:18]}  Rfc7 {[%clk 0:00:32]} 32. Rb5 {[%clk 0:01:15]}  Rf7 {[%clk 0:00:24]} 33. Ka2 {[%clk 0:01:13]}  Kf8 {[%clk 0:00:20]} 34. Kb3 {[%clk 0:01:11]}  Ke8 {[%clk 0:00:20]} 35. Rc4 {[%clk 0:01:04]}  Rfc7 {[%clk 0:00:17]} 36. Rxc7 {[%clk 0:00:59]}  Rxc7 {[%clk 0:00:18]} 37. Rb8 {[%clk 0:00:56]}  Rd7 {[%clk 0:00:12]} 38. Bg5 {[%clk 0:00:51]} 1-0


[Site "https://www.chess.com"]